[Event "*** Titled Tuesday Blitz"]
[Site "Chess.com"]
[Date "2020.04.21"]
[Round "5"]
[White "1g41-0"]
[Black "wannabe2700"]
[Result "0-1"]
[WhiteElo "2440"]
[BlackElo "2668"]
[TimeControl "180+1"]
[EndTime "10:57:34 PDT"]
[Termination "wannabe2700 won by resignation"]

1. e4 {[%clk 0:03:00.9]} 1... e6 {[%clk 0:03:00]} 2. d4 {[%clk 0:03:00.6]} 2...
d5 {[%clk 0:03:00.9]} 3. Nc3 {[%clk 0:02:53.8]} 3... Bb4 {[%clk 0:03:00.2]} 4.
e5 {[%clk 0:02:53.8]} 4... c5 {[%clk 0:03:00.1]} 5. a3 {[%clk 0:02:53.6]} 5...
Ba5 {[%clk 0:03:00.4]} 6. b4 {[%clk 0:02:31.7]} 6... cxd4 {[%clk 0:03:00.6]} 7.
Nb5 {[%clk 0:02:23.2]} 7... Bc7 {[%clk 0:02:59.9]} 8. f4 {[%clk 0:02:20.5]} 8...
Bd7 {[%clk 0:02:59.1]} 9. Nxd4 {[%clk 0:02:19.4]} 9... Ne7 {[%clk 0:02:49.4]}
10. Ngf3 {[%clk 0:02:17.2]} 10... Nbc6 {[%clk 0:02:47.9]} 11. Bd3 {[%clk
0:02:13.9]} 11... Bb6 {[%clk 0:02:38.3]} 12. Bb2 {[%clk 0:02:11]} 12... Nxd4
{[%clk 0:02:34.9]} 13. Nxd4 {[%clk 0:02:11.9]} 13... Nc6 {[%clk 0:02:31.2]} 14.
Nf3 {[%clk 0:01:49.3]} 14... h6 {[%clk 0:02:22.5]} 15. Kf1 {[%clk 0:01:29.6]}
15... g5 {[%clk 0:02:17.4]} 16. f5 {[%clk 0:01:25.4]} 16... g4 {[%clk
0:02:13.6]} 17. Ne1 {[%clk 0:01:19.6]} 17... Qg5 {[%clk 0:02:12.2]} 18. g3
{[%clk 0:00:58.6]} 18... h5 {[%clk 0:01:58]} 19. Ng2 {[%clk 0:00:56.8]} 19... h4
{[%clk 0:01:52.5]} 20. gxh4 {[%clk 0:00:55.9]} 20... Rxh4 {[%clk 0:01:51.9]} 21.
Nxh4 {[%clk 0:00:49.6]} 21... Qxh4 {[%clk 0:01:52.8]} 22. Qe2 {[%clk 0:00:47]}
22... exf5 {[%clk 0:01:47.3]} 23. Bc3 {[%clk 0:00:20.3]} 23... O-O-O {[%clk
0:01:44.7]} 24. Be1 {[%clk 0:00:19.9]} 24... Qg5 {[%clk 0:01:41.6]} 25. c3
{[%clk 0:00:18]} 25... Re8 {[%clk 0:01:40.8]} 26. h4 {[%clk 0:00:16.3]} 26...
Qf4+ {[%clk 0:01:37.1]} 27. Kg2 {[%clk 0:00:15.6]} 27... Rxe5 {[%clk 0:01:31.4]}
28. Qf1 {[%clk 0:00:13.5]} 28... Qh6 {[%clk 0:01:21.1]} 29. Bg3 {[%clk
0:00:13.4]} 29... Qd2+ {[%clk 0:01:20.4]} 30. Bf2 {[%clk 0:00:10.1]} 30... Bxf2
{[%clk 0:01:18.4]} 31. Qxf2 {[%clk 0:00:11]} 31... Qxd3 {[%clk 0:01:17.9]} 32.
Rad1 {[%clk 0:00:10.5]} 32... Qe4+ {[%clk 0:01:15.8]} 33. Kg3 {[%clk 0:00:09.1]}
33... Qc4 {[%clk 0:00:58.9]} 34. h5 {[%clk 0:00:09.1]} 34... Qxc3+ {[%clk
0:00:39.9]} 35. Kg2 {[%clk 0:00:07.6]} 35... f4 {[%clk 0:00:38.2]} 36. h6 {[%clk
0:00:07.4]} 36... g3 {[%clk 0:00:36.3]} 37. Qd2 {[%clk 0:00:06.3]} 37... Qc4
{[%clk 0:00:30.6]} 38. h7 {[%clk 0:00:05.2]} 38... Qe4+ {[%clk 0:00:24.3]} 39.
Kg1 {[%clk 0:00:04.5]} 39... f3 {[%clk 0:00:18.3]} 40. h8=Q+ {[%clk 0:00:04.8]}
40... Kc7 {[%clk 0:00:18.9]} 41. Qh4 {[%clk 0:00:04.3]} 41... f2+ {[%clk
0:00:18.5]} 42. Kf1 {[%clk 0:00:04.5]} 42... g2+ {[%clk 0:00:17.6]} 43. Kxf2
{[%clk 0:00:04.2]} 43... gxh1=Q {[%clk 0:00:16]} 44. Qxh1 {[%clk 0:00:03.6]}
44... Rf5+ {[%clk 0:00:16.1]} 45. Kg1 {[%clk 0:00:03.5]} 45... Qe6 {[%clk
0:00:13.5]} 46. Qhg2 {[%clk 0:00:02.9]} 46... Qf6 {[%clk 0:00:12.9]} 47. Qg3+
{[%clk 0:00:03.2]} 47... Kc8 {[%clk 0:00:12.2]} 48. Qdg2 {[%clk 0:00:04.1]}
48... Ne5 {[%clk 0:00:11.9]} 49. Qg8+ {[%clk 0:00:05]} 49... Kc7 {[%clk
0:00:11.7]} 50. Rc1+ {[%clk 0:00:05.7]} 50... Bc6 {[%clk 0:00:11.9]} 51. Qxd5
{[%clk 0:00:05.5]} 51... Rg5+ {[%clk 0:00:11.4]} 52. Qxg5 {[%clk 0:00:06.1]}
52... Qxg5+ {[%clk 0:00:12.3]} 53. Kf1 {[%clk 0:00:06.3]} 53... Qf4+ {[%clk
0:00:12.3]} 54. Ke1 {[%clk 0:00:06.8]} 54... Qxc1+ {[%clk 0:00:12.4]} 55. Kf2
{[%clk 0:00:06.8]} 55... Bxd5 {[%clk 0:00:12.4]} 0-1

[Event "*** Titled Tuesday Blitz"]
[Site "Chess.com"]
[Date "2020.04.21"]
[Round "5"]
[White "wnstop"]
[Black "chess4life23"]
[Result "1-0"]
[WhiteElo "2595"]
[BlackElo "2415"]
[TimeControl "180+1"]
[EndTime "10:57:34 PDT"]
[Termination "wnstop won on time"]

1. e4 {[%clk 0:03:00.9]} 1... c6 {[%clk 0:02:59.7]} 2. d4 {[%clk 0:02:59.3]}
2... d5 {[%clk 0:02:59.8]} 3. Nc3 {[%clk 0:02:59.9]} 3... dxe4 {[%clk
0:02:59.2]} 4. Nxe4 {[%clk 0:03:00.8]} 4... Nd7 {[%clk 0:02:59.3]} 5. Nf3 {[%clk
0:02:58.7]} 5... Ngf6 {[%clk 0:02:59.4]} 6. Nxf6+ {[%clk 0:02:58.6]} 6... Nxf6
{[%clk 0:03:00.3]} 7. c3 {[%clk 0:02:58.9]} 7... Bf5 {[%clk 0:02:54.4]} 8. Ne5
{[%clk 0:02:57.7]} 8... e6 {[%clk 0:02:53.2]} 9. g4 {[%clk 0:02:57.2]} 9... Qd5
{[%clk 0:02:37.1]} 10. Rg1 {[%clk 0:02:42.2]} 10... Bg6 {[%clk 0:02:00.3]} 11.
h4 {[%clk 0:02:39]} 11... Nd7 {[%clk 0:01:03.3]} 12. Bg2 {[%clk 0:02:06.3]}
12... Qb5 {[%clk 0:00:49.8]} 13. a4 {[%clk 0:00:52.2]} 13... Qa6 {[%clk
0:00:30]} 14. Nxd7 {[%clk 0:00:47]} 14... Kxd7 {[%clk 0:00:29.5]} 15. h5 {[%clk
0:00:44.5]} 15... Bd3 {[%clk 0:00:27]} 16. Qf3 {[%clk 0:00:44.9]} 16... Ke8
{[%clk 0:00:21.1]} 17. Bf4 {[%clk 0:00:41.6]} 17... Bc4 {[%clk 0:00:18.9]} 18.
Qe3 {[%clk 0:00:37.2]} 18... Qb6 {[%clk 0:00:17.5]} 19. Qd2 {[%clk 0:00:27]}
19... a5 {[%clk 0:00:17.8]} 20. Be5 {[%clk 0:00:25.3]} 20... Qd8 {[%clk
0:00:17.7]} 21. h6 {[%clk 0:00:24]} 21... f6 {[%clk 0:00:17.6]} 22. Bg3 {[%clk
0:00:10.1]} 22... gxh6 {[%clk 0:00:17.1]} 23. O-O-O {[%clk 0:00:06.7]} 23... Kf7
{[%clk 0:00:17.4]} 24. Rge1 {[%clk 0:00:05.2]} 24... Bg7 {[%clk 0:00:17.1]} 25.
f4 {[%clk 0:00:04.4]} 25... Re8 {[%clk 0:00:17.4]} 26. Be4 {[%clk 0:00:04.2]}
26... b5 {[%clk 0:00:17.4]} 27. Bc2 {[%clk 0:00:03.9]} 27... Ra7 {[%clk
0:00:12.8]} 28. b4 {[%clk 0:00:02.7]} 28... axb4 {[%clk 0:00:12.6]} 29. cxb4
{[%clk 0:00:03]} 29... bxa4 {[%clk 0:00:13]} 30. Kb2 {[%clk 0:00:01.9]} 30...
a3+ {[%clk 0:00:12.9]} 31. Ka1 {[%clk 0:00:02.8]} 31... a2 {[%clk 0:00:13.2]}
32. Qc3 {[%clk 0:00:03]} 32... Bd5 {[%clk 0:00:12.6]} 33. g5 {[%clk 0:00:03.3]}
33... hxg5 {[%clk 0:00:11.8]} 34. fxg5 {[%clk 0:00:03.6]} 34... f5 {[%clk
0:00:12.4]} 35. Be5 {[%clk 0:00:03.5]} 35... Bxe5 {[%clk 0:00:10.5]} 36. dxe5
{[%clk 0:00:04.4]} 36... Qxg5 {[%clk 0:00:09.6]} 37. Rg1 {[%clk 0:00:04.8]}
37... Qh5 {[%clk 0:00:09.4]} 38. Qg3 {[%clk 0:00:04]} 38... Ke7 {[%clk
0:00:07.1]} 39. Qg7+ {[%clk 0:00:03.6]} 39... Qf7 {[%clk 0:00:07.6]} 40. Qg5+
{[%clk 0:00:02.8]} 40... Kd7 {[%clk 0:00:08]} 41. b5 {[%clk 0:00:02.5]} 41...
cxb5 {[%clk 0:00:07]} 42. Bb3 {[%clk 0:00:02.9]} 42... Kc6 {[%clk 0:00:06]} 43.
Bxd5+ {[%clk 0:00:02.7]} 43... exd5 {[%clk 0:00:06.9]} 44. Rc1+ {[%clk
0:00:02.6]} 44... Kb6 {[%clk 0:00:07.2]} 45. Qe3+ {[%clk 0:00:03]} 45... Kb7
{[%clk 0:00:05.6]} 46. Rc5 {[%clk 0:00:03.4]} 46... Ra5 {[%clk 0:00:02.4]} 47.
Rgc1 {[%clk 0:00:03.5]} 47... Re7 {[%clk 0:00:02.3]} 48. Qd4 {[%clk 0:00:03.6]}
1-0

[Event "*** Titled Tuesday Blitz"]
[Site "Chess.com"]
[Date "2020.04.21"]
[Round "5"]
[White "FranciscodelaF"]
[Black "nocnypako"]
[Result "1-0"]
[WhiteElo "2431"]
[BlackElo "2572"]
[TimeControl "180+1"]
[EndTime "10:57:34 PDT"]
[Termination "FranciscodelaF won on time"]

1. c4 {[%clk 0:03:00.9]} 1... Nf6 {[%clk 0:02:56.9]} 2. Nf3 {[%clk 0:02:57]}
2... g6 {[%clk 0:02:56.6]} 3. g3 {[%clk 0:02:55.4]} 3... Bg7 {[%clk 0:02:49.9]}
4. Bg2 {[%clk 0:02:54.9]} 4... c6 {[%clk 0:02:50.8]} 5. O-O {[%clk 0:02:53.6]}
5... d5 {[%clk 0:02:51.7]} 6. d4 {[%clk 0:02:53.1]} 6... O-O {[%clk 0:02:51.4]}
7. a4 {[%clk 0:02:48.7]} 7... Ne4 {[%clk 0:02:44]} 8. Na3 {[%clk 0:02:12.3]}
8... Na6 {[%clk 0:02:36]} 9. cxd5 {[%clk 0:02:10.9]} 9... cxd5 {[%clk
0:02:36.6]} 10. Bf4 {[%clk 0:02:08.5]} 10... Bd7 {[%clk 0:02:28.1]} 11. Qb3
{[%clk 0:02:04.2]} 11... Bc6 {[%clk 0:02:20.7]} 12. Nb5 {[%clk 0:02:03.6]} 12...
Qb6 {[%clk 0:02:15.3]} 13. Rfd1 {[%clk 0:01:40.3]} 13... Rfc8 {[%clk 0:01:52.2]}
14. Ne5 {[%clk 0:01:37.9]} 14... Bxe5 {[%clk 0:01:48.6]} 15. Bxe5 {[%clk
0:01:37.7]} 15... Nc7 {[%clk 0:01:36.1]} 16. Qa3 {[%clk 0:01:08.7]} 16... Bxb5
{[%clk 0:01:20.3]} 17. axb5 {[%clk 0:01:08.1]} 17... Re8 {[%clk 0:01:05.5]} 18.
Qe3 {[%clk 0:00:42.1]} 18... Nxb5 {[%clk 0:00:59.2]} 19. Bxe4 {[%clk 0:00:38.6]}
19... dxe4 {[%clk 0:01:00.1]} 20. Qxe4 {[%clk 0:00:37.5]} 20... Nd6 {[%clk
0:01:00]} 21. Qd3 {[%clk 0:00:37.2]} 21... a6 {[%clk 0:00:56.7]} 22. Bf4 {[%clk
0:00:30.5]} 22... Qb5 {[%clk 0:00:55.3]} 23. Bxd6 {[%clk 0:00:26.9]} 23... Qxd3
{[%clk 0:00:52.4]} 24. Rxd3 {[%clk 0:00:25.5]} 24... exd6 {[%clk 0:00:53.1]} 25.
Kf1 {[%clk 0:00:20.6]} 25... Rac8 {[%clk 0:00:52.8]} 26. Ke1 {[%clk 0:00:18.8]}
26... Rc2 {[%clk 0:00:47.7]} 27. Rd2 {[%clk 0:00:19.1]} 27... Rc4 {[%clk
0:00:48]} 28. Kd1 {[%clk 0:00:19.1]} 28... Rec8 {[%clk 0:00:47.7]} 29. e3 {[%clk
0:00:19.5]} 29... Kf8 {[%clk 0:00:45.7]} 30. b3 {[%clk 0:00:19]} 30... Rc3
{[%clk 0:00:45.3]} 31. Rb1 {[%clk 0:00:19.4]} 31... Ke7 {[%clk 0:00:45]} 32.
Rbb2 {[%clk 0:00:19.4]} 32... Ke6 {[%clk 0:00:39.3]} 33. Rdc2 {[%clk 0:00:19.8]}
33... Kd5 {[%clk 0:00:36.1]} 34. Rxc3 {[%clk 0:00:19.9]} 34... Rxc3 {[%clk
0:00:36.9]} 35. Kd2 {[%clk 0:00:20.8]} 35... Rc6 {[%clk 0:00:36.1]} 36. Kd3
{[%clk 0:00:21.4]} 36... f5 {[%clk 0:00:36]} 37. f3 {[%clk 0:00:21.9]} 37... Rc1
{[%clk 0:00:32.1]} 38. e4+ {[%clk 0:00:22.8]} 38... Ke6 {[%clk 0:00:31.9]} 39.
Rc2 {[%clk 0:00:22.2]} 39... Rf1 {[%clk 0:00:21]} 40. Ke3 {[%clk 0:00:21.7]}
40... Rb1 {[%clk 0:00:21.1]} 41. Rc3 {[%clk 0:00:19.4]} 41... fxe4 {[%clk
0:00:20.9]} 42. fxe4 {[%clk 0:00:19.4]} 42... d5 {[%clk 0:00:21.5]} 43. e5
{[%clk 0:00:19.4]} 43... a5 {[%clk 0:00:20.3]} 44. Kd3 {[%clk 0:00:17.5]} 44...
Rb2 {[%clk 0:00:20.5]} 45. h4 {[%clk 0:00:16.9]} 45... b6 {[%clk 0:00:20.1]} 46.
Rc6+ {[%clk 0:00:17]} 46... Kf5 {[%clk 0:00:19.5]} 47. Rf6+ {[%clk 0:00:17.1]}
47... Kg4 {[%clk 0:00:19.5]} 48. e6 {[%clk 0:00:16.6]} 48... Rb1 {[%clk
0:00:19.5]} 49. Rf2 {[%clk 0:00:15.9]} 49... Rd1+ {[%clk 0:00:17.2]} 50. Ke3
{[%clk 0:00:13.5]} 50... Rc1 {[%clk 0:00:15.5]} 51. e7 {[%clk 0:00:13.2]} 1-0

[Event "*** Titled Tuesday Blitz"]
[Site "Chess.com"]
[Date "2020.04.21"]
[Round "5"]
[White "Gabrielian_Artur"]
[Black "FLamps8"]
[Result "0-1"]
[WhiteElo "2702"]
[BlackElo "2537"]
[TimeControl "180+1"]
[EndTime "10:57:37 PDT"]
[Termination "FLamps8 won by resignation"]

1. e4 {[%clk 0:03:00.9]} 1... c6 {[%clk 0:02:59.6]} 2. d4 {[%clk 0:03:00.1]}
2... d5 {[%clk 0:03:00.5]} 3. Nd2 {[%clk 0:03:00.4]} 3... dxe4 {[%clk
0:03:00.9]} 4. Nxe4 {[%clk 0:03:00.7]} 4... Bf5 {[%clk 0:03:01.4]} 5. Ng3 {[%clk
0:03:00.7]} 5... Bg6 {[%clk 0:03:02]} 6. c3 {[%clk 0:03:01.1]} 6... e6 {[%clk
0:03:01.2]} 7. Nh3 {[%clk 0:03:01.3]} 7... Bd6 {[%clk 0:02:57]} 8. Nf4 {[%clk
0:03:01.3]} 8... Qc7 {[%clk 0:02:57.5]} 9. Qf3 {[%clk 0:03:01.1]} 9... Nd7
{[%clk 0:02:20.1]} 10. h4 {[%clk 0:02:54.8]} 10... e5 {[%clk 0:02:20.1]} 11. h5
{[%clk 0:02:54]} 11... exf4 {[%clk 0:02:16.3]} 12. hxg6 {[%clk 0:02:51.7]} 12...
fxg6 {[%clk 0:02:10.4]} 13. Ne4 {[%clk 0:02:49.7]} 13... O-O-O {[%clk
0:01:49.2]} 14. Nxd6+ {[%clk 0:02:49.1]} 14... Qxd6 {[%clk 0:01:50.1]} 15. Bxf4
{[%clk 0:02:49]} 15... Re8+ {[%clk 0:01:47.1]} 16. Kd2 {[%clk 0:02:40.3]} 16...
Qf6 {[%clk 0:01:39.1]} 17. Bd3 {[%clk 0:02:34.4]} 17... Ne7 {[%clk 0:01:36.3]}
18. Rae1 {[%clk 0:01:57.9]} 18... g5 {[%clk 0:01:13.8]} 19. Bg3 {[%clk
0:01:55.3]} 19... Qxf3 {[%clk 0:01:13.9]} 20. gxf3 {[%clk 0:01:56.2]} 20... h6
{[%clk 0:01:14.8]} 21. f4 {[%clk 0:01:54.2]} 21... gxf4 {[%clk 0:01:04.4]} 22.
Bxf4 {[%clk 0:01:54.1]} 22... Rhf8 {[%clk 0:01:04.1]} 23. Bg3 {[%clk 0:01:50.7]}
23... Nd5 {[%clk 0:00:48]} 24. Rxe8+ {[%clk 0:01:18.9]} 24... Rxe8 {[%clk
0:00:48.9]} 25. c4 {[%clk 0:01:16.5]} 25... N5f6 {[%clk 0:00:44.6]} 26. f3
{[%clk 0:01:16.1]} 26... c5 {[%clk 0:00:24.4]} 27. dxc5 {[%clk 0:01:00.4]} 27...
Nxc5 {[%clk 0:00:25.3]} 28. Bf5+ {[%clk 0:00:59.1]} 28... Kd8 {[%clk 0:00:19.2]}
29. Rd1 {[%clk 0:00:44.1]} 29... Ne6 {[%clk 0:00:16.5]} 30. Kc3+ {[%clk
0:00:23.1]} 30... Ke7 {[%clk 0:00:16.5]} 31. b4 {[%clk 0:00:20.7]} 31... Ng5
{[%clk 0:00:11.8]} 32. Rd3 {[%clk 0:00:14.4]} 32... Kf7 {[%clk 0:00:08.5]} 33.
Bd6 {[%clk 0:00:11.7]} 33... g6 {[%clk 0:00:08.4]} 34. f4 {[%clk 0:00:09.2]}
34... gxf5 {[%clk 0:00:07.9]} 35. fxg5 {[%clk 0:00:09.2]} 35... Ne4+ {[%clk
0:00:08.3]} 36. Kb3 {[%clk 0:00:08.6]} 36... hxg5 {[%clk 0:00:08.7]} 37. Bh2
{[%clk 0:00:07.9]} 37... g4 {[%clk 0:00:08.8]} 38. c5 {[%clk 0:00:08]} 38... Rh8
{[%clk 0:00:07.8]} 39. Be5 {[%clk 0:00:08.2]} 39... Rh3 {[%clk 0:00:07.3]} 40.
Rxh3 {[%clk 0:00:07.4]} 40... gxh3 {[%clk 0:00:08.2]} 41. Kc4 {[%clk 0:00:08]}
41... Ke6 {[%clk 0:00:08.1]} 42. Bf4 {[%clk 0:00:08.4]} 42... Ng5 {[%clk
0:00:06.9]} 43. Kd3 {[%clk 0:00:06.5]} 43... Nf3 {[%clk 0:00:07]} 44. b5 {[%clk
0:00:03.6]} 44... h2 {[%clk 0:00:06.4]} 45. Bxh2 {[%clk 0:00:04.2]} 45... Nxh2
{[%clk 0:00:07.3]} 46. a4 {[%clk 0:00:04.9]} 46... Kd5 {[%clk 0:00:07.2]} 0-1

[Event "*** Titled Tuesday Blitz"]
[Site "Chess.com"]
[Date "2020.04.21"]
[Round "5"]
[White "AshotParvanyan"]
[Black "KrakenBeast"]
[Result "1-0"]
[WhiteElo "2515"]
[BlackElo "2358"]
[TimeControl "180+1"]
[EndTime "10:57:37 PDT"]
[Termination "AshotParvanyan won by checkmate"]

1. Nf3 {[%clk 0:02:54.3]} 1... c5 {[%clk 0:02:59.1]} 2. e4 {[%clk 0:02:53.2]}
2... d6 {[%clk 0:02:59.3]} 3. d4 {[%clk 0:02:52.4]} 3... cxd4 {[%clk 0:03:00.2]}
4. Nxd4 {[%clk 0:02:53.2]} 4... Nf6 {[%clk 0:03:00.1]} 5. Nc3 {[%clk 0:02:53.2]}
5... a6 {[%clk 0:03:00.3]} 6. Be3 {[%clk 0:02:52.1]} 6... e5 {[%clk 0:03:00.1]}
7. Nf3 {[%clk 0:02:51.9]} 7... Be7 {[%clk 0:03:00.7]} 8. Bc4 {[%clk 0:02:51.3]}
8... O-O {[%clk 0:02:56]} 9. O-O {[%clk 0:02:50.6]} 9... Nbd7 {[%clk 0:02:51.9]}
10. Qe2 {[%clk 0:02:42.8]} 10... b5 {[%clk 0:02:51.4]} 11. Bb3 {[%clk
0:02:38.9]} 11... Bb7 {[%clk 0:02:48.9]} 12. Nd2 {[%clk 0:02:33.6]} 12... Rc8
{[%clk 0:02:47.4]} 13. a4 {[%clk 0:02:23.3]} 13... b4 {[%clk 0:02:46.3]} 14. Nd5
{[%clk 0:02:23.6]} 14... Nxd5 {[%clk 0:02:37.5]} 15. exd5 {[%clk 0:02:23.6]}
15... a5 {[%clk 0:02:37.1]} 16. Rad1 {[%clk 0:01:52.9]} 16... f5 {[%clk
0:02:32.5]} 17. f4 {[%clk 0:01:52.5]} 17... e4 {[%clk 0:02:22.3]} 18. Bc4 {[%clk
0:01:31.9]} 18... Nb6 {[%clk 0:02:11.2]} 19. Bxb6 {[%clk 0:01:02.3]} 19... Qxb6+
{[%clk 0:02:12.1]} 20. Kh1 {[%clk 0:01:02.5]} 20... Bf6 {[%clk 0:02:09.1]} 21.
b3 {[%clk 0:01:00.5]} 21... Kh8 {[%clk 0:01:54.5]} 22. Rfe1 {[%clk 0:00:46.9]}
22... Bc3 {[%clk 0:01:54.8]} 23. Qe3 {[%clk 0:00:42.8]} 23... Qxe3 {[%clk
0:01:48.9]} 24. Rxe3 {[%clk 0:00:43.7]} 24... Rc5 {[%clk 0:01:37.2]} 25. Nf1
{[%clk 0:00:42.2]} 25... g6 {[%clk 0:01:28]} 26. Re2 {[%clk 0:00:41.5]} 26...
Kg7 {[%clk 0:01:19.2]} 27. Ne3 {[%clk 0:00:41.9]} 27... h5 {[%clk 0:01:18]} 28.
g3 {[%clk 0:00:28.7]} 28... Bf6 {[%clk 0:01:13.2]} 29. Kg2 {[%clk 0:00:28.6]}
29... Kf7 {[%clk 0:01:09.8]} 30. Kf1 {[%clk 0:00:28.3]} 30... Bc8 {[%clk
0:01:04.4]} 31. Rg2 {[%clk 0:00:23.3]} 31... Bd7 {[%clk 0:01:03.6]} 32. Ke2
{[%clk 0:00:22.5]} 32... Rfc8 {[%clk 0:01:02.6]} 33. h3 {[%clk 0:00:17.6]} 33...
Bxa4 {[%clk 0:00:58.7]} 34. bxa4 {[%clk 0:00:17.2]} 34... Rxc4 {[%clk
0:00:59.4]} 35. Nxc4 {[%clk 0:00:17.4]} 35... Rxc4 {[%clk 0:01:00.3]} 36. Rd2
{[%clk 0:00:15.4]} 36... Bc3 {[%clk 0:00:55.4]} 37. Rd1 {[%clk 0:00:15.5]} 37...
Bb2 {[%clk 0:00:51.2]} 38. Kf1 {[%clk 0:00:10.5]} 38... e3 {[%clk 0:00:47.2]}
39. Re2 {[%clk 0:00:09.7]} 39... Bd4 {[%clk 0:00:46.9]} 40. Kg2 {[%clk
0:00:09.3]} 40... Bc5 {[%clk 0:00:45.1]} 41. Rd3 {[%clk 0:00:07.7]} 41... h4
{[%clk 0:00:36.5]} 42. Kf3 {[%clk 0:00:06.7]} 42... hxg3 {[%clk 0:00:36.8]} 43.
Kxg3 {[%clk 0:00:07.6]} 43... Kf6 {[%clk 0:00:35.8]} 44. h4 {[%clk 0:00:07]}
44... Re4 {[%clk 0:00:34.1]} 45. Kf3 {[%clk 0:00:06.8]} 45... Re8 {[%clk
0:00:31.7]} 46. Rd1 {[%clk 0:00:06.6]} 46... Re4 {[%clk 0:00:30.4]} 47. Rg1
{[%clk 0:00:04.8]} 47... Kf7 {[%clk 0:00:23.5]} 48. Reg2 {[%clk 0:00:05.2]}
48... e2 {[%clk 0:00:23.5]} 49. Re1 {[%clk 0:00:04.5]} 49... Rd4 {[%clk
0:00:17.2]} 50. Rgxe2 {[%clk 0:00:03.6]} 50... Rxd5 {[%clk 0:00:16.9]} 51. Re7+
{[%clk 0:00:03.8]} 51... Kg8 {[%clk 0:00:17]} 52. Re8+ {[%clk 0:00:03.9]} 52...
Kg7 {[%clk 0:00:17.5]} 53. R1e7+ {[%clk 0:00:04.1]} 53... Kh6 {[%clk 0:00:17.9]}
54. Rh8# {[%clk 0:00:03.6]} 1-0

[Event "*** Titled Tuesday Blitz"]
[Site "Chess.com"]
[Date "2020.04.21"]
[Round "5"]
[White "ljuks68"]
[Black "vpsetter"]
[Result "0-1"]
[WhiteElo "2343"]
[BlackElo "2597"]
[TimeControl "180+1"]
[EndTime "10:57:38 PDT"]
[Termination "vpsetter won by resignation"]

1. e4 {[%clk 0:02:59.8]} 1... e5 {[%clk 0:02:32]} 2. Nf3 {[%clk 0:02:56.6]} 2...
Nc6 {[%clk 0:02:32.2]} 3. Bb5 {[%clk 0:02:56.5]} 3... Nf6 {[%clk 0:02:29.4]} 4.
Qe2 {[%clk 0:02:55.8]} 4... d6 {[%clk 0:02:27.8]} 5. c3 {[%clk 0:02:55]} 5...
Bd7 {[%clk 0:02:27.8]} 6. O-O {[%clk 0:02:54.5]} 6... a6 {[%clk 0:02:27.1]} 7.
Ba4 {[%clk 0:02:53.9]} 7... Be7 {[%clk 0:02:22.4]} 8. d4 {[%clk 0:02:53.5]} 8...
Kf8 {[%clk 0:02:22.4]} 9. Bb3 {[%clk 0:02:50]} 9... h6 {[%clk 0:02:12.6]} 10.
Rd1 {[%clk 0:02:49.3]} 10... Qc8 {[%clk 0:02:11.6]} 11. Nbd2 {[%clk 0:02:45.2]}
11... b5 {[%clk 0:01:52.4]} 12. Nf1 {[%clk 0:02:44]} 12... g6 {[%clk 0:01:48]}
13. a4 {[%clk 0:02:38.5]} 13... Rb8 {[%clk 0:01:41.9]} 14. a5 {[%clk 0:02:34.2]}
14... Kg7 {[%clk 0:01:40.6]} 15. d5 {[%clk 0:02:34.1]} 15... Nd8 {[%clk
0:01:38.7]} 16. c4 {[%clk 0:02:34]} 16... c5 {[%clk 0:01:24.8]} 17. h3 {[%clk
0:02:21.9]} 17... Nh7 {[%clk 0:01:16.6]} 18. g4 {[%clk 0:02:16.7]} 18... f5
{[%clk 0:01:14.4]} 19. gxf5 {[%clk 0:02:14.1]} 19... gxf5 {[%clk 0:01:14.5]} 20.
exf5 {[%clk 0:02:13]} 20... Bxf5 {[%clk 0:01:09.1]} 21. Ng3 {[%clk 0:02:12.5]}
21... Bg6 {[%clk 0:01:04.9]} 22. Kh2 {[%clk 0:02:08.8]} 22... Nf7 {[%clk
0:01:04.7]} 23. Rg1 {[%clk 0:02:06.8]} 23... Nhg5 {[%clk 0:01:03.2]} 24. Nxg5
{[%clk 0:01:34.4]} 24... hxg5 {[%clk 0:01:02.6]} 25. Rg2 {[%clk 0:01:22.2]}
25... Qxh3+ {[%clk 0:01:00.7]} 26. Kg1 {[%clk 0:01:21.9]} 26... Rh4 {[%clk
0:00:50.6]} 27. f3 {[%clk 0:01:18.7]} 27... g4 {[%clk 0:00:41.8]} 28. f4 {[%clk
0:01:12.5]} 28... exf4 {[%clk 0:00:28.6]} 29. Bxf4 {[%clk 0:01:11.3]} 29... Bf6
{[%clk 0:00:28.3]} 30. Kf2 {[%clk 0:01:02.1]} 30... bxc4 {[%clk 0:00:27.2]} 31.
Rh1 {[%clk 0:00:58.7]} 31... Bd4+ {[%clk 0:00:26.9]} 32. Be3 {[%clk 0:00:44.3]}
32... Bxe3+ {[%clk 0:00:20.6]} 33. Qxe3 {[%clk 0:00:30.9]} 33... Rxb3 {[%clk
0:00:21.5]} 34. Qe2 {[%clk 0:00:20.3]} 34... Rf3+ {[%clk 0:00:15.8]} 35. Kg1
{[%clk 0:00:18.3]} 35... Rxg3 {[%clk 0:00:10.5]} 36. Rxh3 {[%clk 0:00:17.8]}
36... Rhxh3 {[%clk 0:00:11.2]} 37. Rxg3 {[%clk 0:00:16.2]} 37... Rxg3+ {[%clk
0:00:11.5]} 38. Kh2 {[%clk 0:00:15.5]} 38... Rh3+ {[%clk 0:00:12.2]} 39. Kg2
{[%clk 0:00:14.7]} 39... Ne5 {[%clk 0:00:13]} 40. Qd2 {[%clk 0:00:11.3]} 40...
Be4+ {[%clk 0:00:12.2]} 41. Kf1 {[%clk 0:00:11.2]} 41... Rh1+ {[%clk 0:00:12]}
42. Ke2 {[%clk 0:00:10.5]} 42... Rh2+ {[%clk 0:00:12.5]} 43. Ke3 {[%clk
0:00:11]} 43... Rxd2 {[%clk 0:00:12.3]} 0-1